Cogmind - Beta 17 @@@ ROGUE MODE // 2026.08.11 @ 17:15:45 Player: Rocketboy Result: Destroyed by Y-64 Sentinel with KE Penetrator Performance ------------- Evolutions (3) 1500 Regions Visited (7) 1400 Robots Destroyed (47) 235 Value Destroyed (1108) 1108 Prototype IDs (2) 40 Alien Tech Used (0) 0 Bonus (0) 0 TOTAL SCORE: 4283 Bonus ------- None Cogmind --------- Core Integrity 0/700 Matter 300/300 Energy 100/100 System Corruption 0% Temperature Cool (0) Movement Core (50) Location -7/Lower Caves Parts ------- > --- POWER (1) -------- (None) > --- PROPULSION (6) --- (None) > --- UTILITY (4) ------ Improved Melee Analysis Suite > --- WEAPON (2) ------- (None) > --- INVENTORY (5) ---- Advanced Weight Redist. System Core Analyzer Armor Integrity Analyzer Microactuators Advanced ECM Suite Peak State ------------ > --- POWER ------------ Light Deuterium Engine > --- PROPULSION ------- Armored Treads Armored Treads Airjet Gravmag System > --- UTILITY ---------- Advanced Visual Processing Unit Improved Melee Analysis Suite Improved Melee Analysis Suite Microactuators > --- WEAPON ----------- Heavy Mace > --- INVENTORY -------- Armor Integrity Analyzer Weapon Cycler Microactuators Improved Datajack [Rating: 35] Favorites ----------- Power Ion Engine Engine Ion Engine Propulsion Aluminum Leg Treads Armored Treads Leg Aluminum Leg Hover Unit Airjet Flight Unit Cesium-ion Thruster Utility Improved Melee Analysis Suite Device Microactuators Storage Small Storage Unit Processor Improved Melee Analysis Suite Weapon Spread Laser Energy Gun Spread Laser Ballistic Gun Light Assault Rifle Special Weapon Remote Datajack Impact Weapon Heavy Mace Special Melee Weapon Datajack Build | -11 -10 -9 -8 -7 -7 -7 -7 ------- Run | Yrd Mat Mat Mat Fac Was Fac Low Slots Evolved 6 | . . 2 2 2 . . . Power . | . . . . . . . . Propulsion 4 | . . 2 . 2 . . . Utility 2 | . . . 2 . . . . Weapon . | . . . . . . . . Parts Attached 50 | 7 10 14 8 3 . 8 . Power 8 | 1 2 4 . . . 1 . Engine 8 | 1 2 4 . . . 1 . Core . | . . . . . . . . Reactor . | . . . . . . . . Propulsion 20 | 2 2 8 4 . . 4 . Treads 2 | . . . . . . 2 . Leg 14 | 2 2 8 2 . . . . Wheel . | . . . . . . . . Hover 2 | . . . . . . 2 . Flight 2 | . . . 2 . . . . Utility 13 | 2 3 . 3 3 . 2 . Device 6 | 2 . . 3 . . 1 . Storage 1 | . 1 . . . . . . Processor 6 | . 2 . . 3 . 1 . Hackware . | . . . . . . . . Protection . | . . . . . . . . Artifact . | . . . . . . . . Weapon 9 | 2 3 2 1 . . 1 . Energy Gun 2 | . 2 . . . . . . Energy Cannon . | . . . . . . . . Ballistic Gun 4 | 2 . 2 . . . . . Ballistic Cannon . | . . . . . . . . Launcher . | . . . . . . . . Special Weapon 1 | . . . . . . 1 . Impact Weapon 1 | . . . 1 . . . . Slashing Weapon . | . . . . . . . . Piercing Weapon . | . . . . . . . . Special Melee Weapon 1 | . 1 . . . . . . Unidentified Prototypes 2 | . . 2 . . . . . Parts Lost 20 | . 2 1 9 . . 2 6 Power 3 | . 2 . 1 . . . . Propulsion 6 | . . . 3 . . 1 2 Utility 7 | . . . 3 . . 1 3 Weapon 4 | . . 1 2 . . . 1 Highest Loss Streak 8 | . 1 1 8 . . 2 6 To Critical Strikes . | . . . . . . . . Average Backups 5 | 1 4 7 5 3 4 4 5 Power . | . . . . . . . . Propulsion . | . 1 . 1 . . . . Utility 2 | . 1 1 1 2 3 3 5 Weapon 1 | . 1 3 1 . . . . Tool/Special . | . . . . . . . . Unused Backups 16 | . 3 2 . 2 . 4 5 Power . | . . . . . . . . Propulsion 2 | . 2 . . . . . . Utility 9 | . . . . 1 . 3 5 Weapon 4 | . 1 2 . 1 . . . Tool/Special 1 | . . . . . . 1 . Average Slot Usage (%) 75 | . 97 98 70 42 46 54 50 Engine 6 | . 12 10 4 . . 2 3 Leg 19 | . 27 43 19 . . . . Hover 2 | . . . . . . 6 8 Flight 1 | . . . 3 7 7 1 . Device 6 | . 9 . 15 7 7 7 4 Storage 4 | . 5 11 5 . . . . Processor 15 | . 13 11 9 19 23 22 19 Energy Gun 5 | . 8 9 9 . . . . Ballistic Gun 7 | . 18 12 . . . . . Impact Weapon 2 | . . . 1 7 7 7 6 Peak Build Rating 35 | 9 10 17 18 19 19 35 33 Average Rating 16 | 5 9 14 12 16 19 25 23 On Entrance 13 | . 9 10 12 9 19 19 33 Avg Prop Armor Cover (%) 29 | . . 6 . . . 30 . Naked Turns . | . . . . . . . . Heaviest Build 19 | 7 16 19 18 5 5 13 13 Greatest Support 43 | 20 20 43 43 6 6 17 17 Greatest Overweight (x) 1 | 1 . . 1 . . 1 1 Average Overweight (x) . | . . . . . . . . Largest Inventory Capacity 8 | 5 8 8 8 5 5 5 5 Average Capacity 6 | 5 6 8 6 5 5 5 5 Most Carried 8 | 3 8 8 8 5 4 5 5 Average Carried 5 | 1 4 7 5 3 4 4 5 Final Capacity 8 | 5 8 8 5 5 5 5 5 Final Carried 8 | 2 8 8 5 4 4 5 5 Class Distribution -------------------- 77% | Mutant 22% | Scavenger-Mutant Dominant Class ---------------- Mutant | -10/Materials Scavenger-Mutant | -9/Materials Scavenger-Mutant | -8/Materials Mutant | -7/Factory Mutant | -7/Waste Mutant | -7/Factory Mutant | -7/Lower Caves Resources | -11 -10 -9 -8 -7 -7 -7 -7 ----------- Run | Yrd Mat Mat Mat Fac Was Fac Low Matter Collected 1024 | 280 147 321 . 47 . 133 96 Remotely . | . . . . . . . . Salvage Created 1342 | 98 310 729 . 47 . 133 25 Parts 72 | 7 12 50 . 1 . 2 . Haulers Intercepted 3 | . . 3 . . . . . Recyclers Shooed . | . . . . . . . . Parts Field Recycled . | . . . . . . . . Retrieved Matter . | . . . . . . . . Parts Self-Destructed . | . . . . . . . . Prevented . | . . . . . . . . Parts Restored . | . . . . . . . . Kills | -11 -10 -9 -8 -7 -7 -7 -7 ------- Run | Yrd Mat Mat Mat Fac Was Fac Low Combat Hostiles Destroyed 34 | . 11 17 . . . 5 1 Melee 5 | . . . . . . 4 1 Guns 28 | . 11 17 . . . . . Classes Destroyed 9 | 2 2 3 . 1 . 1 . Worker 5 | . . 4 . . . 1 . Builder 1 | . . . . . . 1 . Tunneler 1 | 1 . . . . . . . Hauler 3 | . . 3 . . . . . Recycler 1 | 1 . . . . . . . Watcher 2 | . . . . 2 . . . Swarmer 12 | . 3 3 . . . 5 1 Grunt 19 | . 8 11 . . . . . Sentry 3 | . . 3 . . . . . Best Kill Streak 7 | 2 3 7 . 1 . 3 1 Combat Bots Only 5 | . 3 5 . . . 3 1 Max Kills in Single Turn 2 | 1 2 1 . 1 . 1 1 Gunslinging . | . . . . . . . . Exploded . | . . . . . . . . Melee 1 | . . . . . . 1 1 Uniques/NPCs Destroyed . | . . . . . . . . Combat | -11 -10 -9 -8 -7 -7 -7 -7 -------- Run | Yrd Mat Mat Mat Fac Was Fac Low Hostile Shots Fired 399 | . 48 86 88 . . 108 69 Missed 164 | . 14 23 45 . . 56 26 Hits 235 | . 34 63 43 . . 52 43 Melee 1 | . . . . . . . 1 Projectile 234 | . 34 63 43 . . 52 42 Critical Strikes 5 | . 1 1 1 . . . 2 Damage Taken 3160 | . 438 840 733 . . 459 690 Core 1198 | . 97 165 225 . . 262 449 Absorbed by Shields 29 | . . . . . . 29 . Regen/Repaired (Parts) 39 | . 39 . . . . . . Core Remaining (%) 69 | 100 61 58 59 . . . . Volleys Fired 78 | 5 26 47 . . . . . Largest 2 | 2 2 2 . . . . . Hottest 130 | 40 130 130 . . . . . Shots Fired 156 | 10 52 94 . . . . . Gun 156 | 10 52 94 . . . . . Cannon . | . . . . . . . . Launcher . | . . . . . . . . Special . | . . . . . . . . Kinetic 80 | 10 34 36 . . . . . Thermal 76 | . 18 58 . . . . . Explosive . | . . . . . . . . Electromagnetic . | . . . . . . . . Robot Hit Streak 21 | 4 9 21 . . . . . Robot Miss Streak 4 | 2 3 4 . . . . . Penetration Max . | . . . . . . . . Secondary Targets 2 | . 1 1 . . . . . Max Gunslinging Chain 1 | . 1 1 . . . . . Shots Hit Robots 144 | 6 42 79 . 4 . 11 2 Core Hits 109 | 4 31 71 . 1 . 2 . Critical Kills 1 | . 1 . . . . . . Critical Parts Destroyed 4 | . . . . . . 4 . Critical Strikes 5 | . 1 . . . . 4 . Destroy 1 | . 1 . . . . . . Smash 4 | . . . . . . 4 . Melee Attacks 29 | . . 4 . 5 . 16 4 Impact 25 | . . . . 5 . 16 4 Slashing . | . . . . . . . . Piercing . | . . . . . . . . Sneak Attacks 6 | . . 4 . . . 2 . Combat Hostiles . | . . . . . . . . Follow-up Attacks . | . . . . . . . . Damage Inflicted 2537 | 54 444 1220 . 213 . 502 104 Guns 1694 | 54 443 1197 . . . . . Cannons . | . . . . . . . . Explosions . | . . . . . . . . Melee 819 | . . . . 213 . 502 104 Ramming 24 | . 1 23 . . . . . Kinetic 679 | 54 199 426 . . . . . Thermal 1015 | . 244 771 . . . . . Explosive . | . . . . . . . . Electromagnetic . | . . . . . . . . Impact 819 | . . . . 213 . 502 104 Slashing . | . . . . . . . . Piercing . | . . . . . . . . Highest Corruption . | . . . . . . . . Average Corruption . | . . . . . . . . Corruption Purged . | . . . . . . . . Corruption Blocked . | . . . . . . . . Overload Shots . | . . . . . . . . Overflow Damage 419 | . . . . 61 . 304 54 Projectiles . | . . . . . . . . Explosions . | . . . . . . . . Melee 419 | . . . . 61 . 304 54 Knockbacks 5 | . . . . 1 . 3 1 Impact 4 | . . . . 1 . 2 1 Kinetic . | . . . . . . . . Secondary 1 | . . . . . . 1 . Self-Inflicted Damage . | . . . . . . . . Shots . | . . . . . . . . Rammed . | . . . . . . . . Targets Rammed 4 | . 1 3 . . . . . Kicked 4 | . 1 3 . . . . . Crushed . | . . . . . . . . Highest Temperature 564 | . 240 564 . . . . 5 Average Temperature 168 | . 88 200 . . . . 5 Received Heat Transfer 864 | . 201 318 207 . . 69 69 Effects 8 | . . 8 . . . . . Shutdowns 2 | . . 2 . . . . . Interference 1 | . . 1 . . . . . Matter Decay 1 | . . 1 . . . . . Short Circuit 1 | . . 1 . . . . . Damage (minor) 1 | . . 1 . . . . . Damage (major) 1 | . . 1 . . . . . Damage (core) 1 | . . 1 . . . . . Siege Activations . | . . . . . . . . Martial Activations . | . . . . . . . . Shielding Activations . | . . . . . . . . Robots Disrupted . | . . . . . . . . Combat Hostiles . | . . . . . . . . Robots Corrupted 4 | . . . . 1 . 3 . Combat Hostiles 1 | . . . . . . 1 . Parts Fried 8 | . . . . 1 . 6 1 Impact Corruptions 17 | . . . . 3 . 11 3 Robots Melted . | . . . . . . . . Combat Hostiles . | . . . . . . . . Parts Melted 1 | . 1 . . . . . . Heat Transferred 1245 | . 300 945 . . . . . Parts Sabotaged . | . . . . . . . . Parts Stolen . | . . . . . . . . Parts Stripped . | . . . . . . . . Power Chain Reactions . | . . . . . . . . Alert | -11 -10 -9 -8 -7 -7 -7 -7 ------- Run | Yrd Mat Mat Mat Fac Was Fac Low Maximum Alert Level 1 | . . 1 . . . . . Low Security (%) 95 | 100 100 83 100 100 100 100 . Level 1 4 | . . 16 . . . . . Level 2 . | . . . . . . . . Level 3 . | . . . . . . . . Level 4 . | . . . . . . . . Level 5 . | . . . . . . . . High Security . | . . . . . . . . Max Security . | . . . . . . . . Peak Influence 263 | 5 85 263 100 61 17 101 . Initial 100 | . . 22 100 39 17 4 . Average 59 | 1 34 132 51 39 14 24 . Influence Increases 1492 | 10 301 495 158 82 . 266 180 Destroy 0b10 Robot/C 680 | . 220 340 . . . 100 20 Destroy 0b10 Robot/NC 65 | 10 . 35 . 10 . 10 . Destroy Leader 150 | . 40 76 . 4 . 20 10 Successful Hack 86 | . 11 13 8 38 . 16 . Select Force Hacks 60 | . . . . 30 . 30 . Destroy Structure 1 | . . 1 . . . . . Lose Combat Pursuer 450 | . 30 30 150 . . 90 150 Influence Decreases 1399 | 10 248 311 307 119 44 204 156 Entered New Map 280 | . . 31 137 49 34 3 26 Time Decay 931 | 10 190 270 130 70 10 181 70 Lost Part 148 | . 18 10 40 . . 20 60 Purge Threat 40 | . 40 . . . . . . Squads Dispatched 11 | . 2 3 3 1 . 2 . Investigation 3 | . 1 . . 1 . 1 . Extermination 1 | . . . . . . 1 . Reinforcement 7 | . 1 3 3 . . . . Assault . | . . . . . . . . Garrison . | . . . . . . . . Intercept . | . . . . . . . . Searches Triggered . | . . . . . . . . Construction Impeded . | . . . . . . . . Haulers Reinforced . | . . . . . . . . Active Scanning Responses . | . . . . . . . . Cargo Convoy Interrupts . | . . . . . . . . Stealth | -11 -10 -9 -8 -7 -7 -7 -7 --------- Run | Yrd Mat Mat Mat Fac Was Fac Low Distress Signals 7 | . 1 5 1 . . . . Communications Jammed . | . . . . . . . . Distress Signals . | . . . . . . . . Times Spotted 121 | . 17 35 28 3 6 15 17 Peak Tracking Total 17 | . 4 10 17 2 6 7 10 Tactical Retreats 17 | . 2 2 4 . . 5 4 ECM-based Alert Blocks 1 | . . . . . . 1 . Traps | -11 -10 -9 -8 -7 -7 -7 -7 ------- Run | Yrd Mat Mat Mat Fac Was Fac Low Traps Triggered 5 | . 1 1 . 1 . 2 . Indirectly . | . . . . . . . . Trap Hack Attempts 5 | . . 5 . . . . . Triggered 1 | . . 1 . . . . . Disarmed . | . . . . . . . . Reprogrammed . | . . . . . . . . Reused . | . . . . . . . . Traps Extracted . | . . . . . . . . Installed . | . . . . . . . . Triggered . | . . . . . . . . Machines | -11 -10 -9 -8 -7 -7 -7 -7 ---------- Run | Yrd Mat Mat Mat Fac Was Fac Low Machines Disabled . | . . . . . . . . Max in Single Turn . | . . . . . . . . Garrison Access 1 | . . . 1 . . . . Machines Repaired . | . . . . . . . . Machines Dismantled . | . . . . . . . . Machines Sabotaged . | . . . . . . . . Overloaded Fab Kills . | . . . . . . . . Hacking | -11 -10 -9 -8 -7 -7 -7 -7 --------- Run | Yrd Mat Mat Mat Fac Was Fac Low Machines Accessed 23 | . 4 4 4 5 . 6 . Terminals 15 | . 2 4 2 3 . 4 . Fabricators . | . . . . . . . . Repair Stations 3 | . 1 . . 1 . 1 . Recycling Units 3 | . 1 . . 1 . 1 . Scanalyzers 1 | . . . 1 . . . . Garrison Access 1 | . . . 1 . . . . Total Hacks 67 | . 13 9 14 13 . 18 . Successful 34 | . 9 4 8 6 . 7 . Failed 33 | . 4 5 6 7 . 11 . Catastrophic 5 | . 1 1 . 2 . 1 . Database Lockouts . | . . . . . . . . Manual 36 | . 6 4 6 9 . 11 . Terminals 45 | . 8 9 7 7 . 14 . Fabricators . | . . . . . . . . Repair Stations 5 | . 3 . . 1 . 1 . Recycling Units 10 | . 2 . . 5 . 3 . Scanalyzers 5 | . . . 5 . . . . Garrison Access 2 | . . . 2 . . . . Terminal Hacks 15 | . 4 4 3 1 . 3 . Record 2 | . 1 . . 1 . . . Open DSF 1 | . . . . . . 1 . Level Access Points 1 | . . . 1 . . . . Branch Access Points 3 | . . 1 1 . . 1 . Alert Level 3 | . 1 1 . . . 1 . Unreport Threat 2 | . 2 . . . . . . Recall Investigation 1 | . . 1 . . . . . Zone Layout 2 | . . 1 1 . . . . Fabricator Hacks . | . . . . . . . . Repair Station Hacks 3 | . 3 . . . . . . Scan Component 2 | . 2 . . . . . . Repair 1 | . 1 . . . . . . Recycling Unit Hacks 4 | . 2 . . 1 . 1 . Report Inventory 3 | . 1 . . 1 . 1 . Retrieve Components 1 | . 1 . . . . . . Scanalyzer 4 | . . . 4 . . . . Insert Component 1 | . . . 1 . . . . Analyze 1 | . . . 1 . . . . Retrieve Study 2 | . . . 2 . . . . Garrison Access Hacks 1 | . . . 1 . . . . Seal Access 1 | . . . 1 . . . . Unauthorized Hacks 7 | . . . . 4 . 3 . Terminals 4 | . . . . 2 . 2 . Track 2 | . . . . 1 . 1 . Botnet 2 | . . . . 1 . 1 . Fabricators . | . . . . . . . . Repair Stations . | . . . . . . . . Recycling Units 3 | . . . . 2 . 1 . Reject 1 | . . . . 1 . . . Tunnel 2 | . . . . 1 . 1 . Scanalyzers . | . . . . . . . . Garrison Access . | . . . . . . . . Data Cores Recovered . | . . . . . . . . Used . | . . . . . . . . Hacking Detections 23 | . 4 4 4 5 . 6 . Full Trace Events 1 | . 1 . . . . . . Feedback Events . | . . . . . . . . Feedback Blocked . | . . . . . . . . Robot Schematics Acquired . | . . . . . . . . Robots Built . | . . . . . . . . Authchips . | . . . . . . . . Time . | . . . . . . . . Total Robot Build Rating . | . . . . . . . . Part Schematics Acquired 1 | . . . 1 . . . . Parts Built . | . . . . . . . . Authchips . | . . . . . . . . Time . | . . . . . . . . Total Part Build Rating . | . . . . . . . . Part Studies Acquired 2 | . . . 2 . . . . Parts Repaired 1 | . 1 . . . . . . Time 26 | . 26 . . . . . . Parts Recycled . | . . . . . . . . Recycled Matter . | . . . . . . . . Retrieved Matter . | . . . . . . . . Retrieved Components 2 | . 2 . . . . . . Parts Scanalyzed 1 | . . . 1 . . . . Part Schematics Acquired 1 | . . . 1 . . . . Parts Damaged . | . . . . . . . . Bothacking | -11 -10 -9 -8 -7 -7 -7 -7 ------------ Run | Yrd Mat Mat Mat Fac Was Fac Low Used RIF Installer . | . . . . . . . . Robots Hacked 1 | . . 1 . . . . . Non-combat 1 | . . 1 . . . . . Combat . | . . . . . . . . Robot Hacks Applied 2 | . . 2 . . . . . parse_system 1 | . . 1 . . . . . no_distress 1 | . . 1 . . . . . Relay Couplers Released . | . . . . . . . . Fabnet Peak Effective % . | . . . . . . . . Robots Rewired . | . . . . . . . . Allies Hacked . | . . . . . . . . Hacks Repelled . | . . . . . . . . Allies | -11 -10 -9 -8 -7 -7 -7 -7 -------- Run | Yrd Mat Mat Mat Fac Was Fac Low Total Allies . | . . . . . . . . Largest Group . | . . . . . . . . Highest-Rated Group . | . . . . . . . . Highest-Rated Ally . | . . . . . . . . Total Orders . | . . . . . . . . Ally Attacks . | . . . . . . . . Total Damage . | . . . . . . . . Kills . | . . . . . . . . Allies Corrupted . | . . . . . . . . Allies Melted . | . . . . . . . . Intel | -11 -10 -9 -8 -7 -7 -7 -7 ------- Run | Yrd Mat Mat Mat Fac Was Fac Low Active Infowar (turns) 1345 | 25 308 . 159 145 24 556 128 Optics 827 | . . . . 119 24 556 128 Terrain 491 | 25 308 . 158 . . . . Seismic 39 | 20 19 . . . . . . ECM 154 | . . . 1 54 24 75 . Robot Analysis Total . | . . . . . . . . Derelict Logs Recovered . | . . . . . . . . Drone Launches . | . . . . . . . . Drone Recoveries . | . . . . . . . . Exploration | -11 -10 -9 -8 -7 -7 -7 -7 ------------- Run | Yrd Mat Mat Mat Fac Was Fac Low Turns Passed 2317 | 74 493 581 284 151 24 556 154 Spaces Moved 2389 | 41 267 259 411 354 69 726 262 Core 335 | 8 . . 60 . . 154 113 Treads . | . . . . . . . . Legs 686 | 33 267 259 127 . . . . Wheels . | . . . . . . . . Hover 519 | . . . . . . 370 149 Flight 849 | . . . 224 354 69 202 . Fastest Speed 35 | 50 120 120 35 35 35 35 50 Average Speed 70 | 111 120 120 62 35 35 63 54 Slowest Speed 160 | 120 120 120 120 35 35 160 120 Overloaded Moves . | . . . . . . . . Propulsion Burnouts . | . . . . . . . . Robots Hopped 2 | . . . 2 . . . . Potential Cave-ins . | . . . . . . . . Cave-ins Triggered . | . . . . . . . . Exploration Rate (%) 37 | 4 43 29 55 9 98 31 31 Regions Visited 7 Branch Regions 1 Pre-discovered Areas 2 | . . . . 1 . 1 . Known Exits Taken 2 | . . . 1 . . 1 . Unknown Exits Taken 3 | 1 1 1 . . . . . Scrap Searched 1 | . . . . . . . 1 Spaces Dug . | . . . . . . . . Terrain Destroyed . | . . . . . . . . Melee . | . . . . . . . . Projectile . | . . . . . . . . AOE . | . . . . . . . . Terrain Rammed . | . . . . . . . . Walls Destroyed . | . . . . . . . . Machines Disabled . | . . . . . . . . Actions | -11 -10 -9 -8 -7 -7 -7 -7 --------- Run | Yrd Mat Mat Mat Fac Was Fac Low Total 2839 | 61 392 439 436 374 68 801 268 Wait 126 | . 67 47 3 3 . 6 . Move 2379 | 40 266 258 406 354 68 725 262 Hop 2 | . . . 2 . . . . Pick Up 73 | 9 15 23 8 5 . 13 . Fast Attach . | . . . . . . . . Attach 45 | 7 3 16 8 3 . 8 . Detach 2 | . . 2 . . . . . Swap 27 | . 9 14 4 . . . . Drop 43 | . 5 20 5 4 . 7 2 Fire 78 | 5 26 47 . . . . . Melee 29 | . . 4 . 5 . 16 4 Ram . | . . . . . . . . Kick 4 | . 1 3 . . . . . Crush . | . . . . . . . . Escape Stasis 26 | . . . . . . 26 . Rewire . | . . . . . . . . Trap 5 | . . 5 . . . . . Miscellaneous . | . . . . . . . . Route ------- -11/Scrapyard -10/Materials (discovered 2 exits: *Mat / [*Min]) -9/Materials (discovered 3 exits: *Mat / Min x2) -8/Materials (discovered 4 exits: *Fac x3 / Sto) -7/Factory -7/Waste -7/Factory (discovered 3 exits: [*Fac] / *Low x2) -7/Lower Caves History --------- Turn | Location | Event 10 | -11/Scrapyard | Discovered new exit (range 16) 75 | -11/Scrapyard | Entered Materials 230 | -10/Materials | Repaired Aluminum Leg 283 | -10/Materials | Discovered new exit (range 10) 294 | -10/Materials | Discovered new exit (range 12) 311 | -10/Materials | Build established: Mutant 568 | -10/Materials | Entered another Materials area 568 | -9/Materials | Evolved 2 slots: Propulsion x2 710 | -9/Materials | Identified exit to Mines 1131 | -9/Materials | Discovered new exit (range 16) 1149 | -9/Materials | Entered another Materials area 1149 | -8/Materials | Evolved 2 slots: Utility x2 1354 | -8/Materials | Identified exit to Storage 1354 | -8/Materials | Identified exit to Factory 1372 | -8/Materials | Lost 8 parts (1p3n2u2w) 1433 | -8/Materials | Entered Factory 1433 | -7/Factory | Evolved 2 slots: Propulsion x2 1584 | -7/Factory | Sucked down chute 1584 | -7/Factory | Entered Waste 1590 | -7/Waste | Spotted C-40 Crusher 1591 | -7/Waste | Spotted C-40 Crusher 1592 | -7/Waste | Spotted C-40 Crusher 1593 | -7/Waste | Spotted C-40 Crusher 1594 | -7/Waste | Spotted C-40 Crusher 1601 | -7/Waste | Discovered new exit (range 20) 1601 | -7/Waste | Spotted C-40 Crusher 1608 | -7/Waste | Entered Factory 1873 | -7/Factory | Identified exit to Lower Caves 2036 | -7/Factory | Discovered new exit (range 13) 2164 | -7/Factory | Entered Lower Caves 2239 | -7/Lower Caves | Spotted B-75 Beast 2258 | -7/Lower Caves | Core integrity fell below 50% 2269 | -7/Lower Caves | Core integrity fell below 20% 2317 | -7/Lower Caves | Attracted the attention of an 0b10 outpost 2318 | -7/Lower Caves | Destroyed by Y-64 Sentinel with KE Penetrator Last Messages --------------- Airjet destroyed. Dropped Lgt. Deuterium Engine. Gravmag System destroyed. Destroyed VTOL Module. S-27 Virus system corrupted by crushing effect. S-27 Virus knocked back. Microactuators destroyed. Destroyed VTOL Module. S-27 Virus system corrupted by crushing effect. Lgt. Nuclear Core fried. S-27 Virus destroyed. Dropped Remote Datajack. Acquired 3 matter. Imp. Melee Analysis Suite destroyed. Adv. Visual Processing Unit destroyed. Critical hit (Blast). Hvy. Mace destroyed. Y-64 Sentinel: "DETECTED UNIDENTIFIED DERELICT." Penetrated by Slug. Map ----- +----------------------------------------------------+ | ?????????????????????????????????????????????????? | | ?????????????????????????????????????????????????? | | ?????????????????????????????????????????????????? | | ?????????????????????????????????????????????????? | | ?????????????????????????????????????????????????? | | ?????????????????????????????????????????????????? | | ?????????????????????????????????????????????????? | | ?????????????????????????????????????????????????? | | ?????????????????????????????????????????????????? | | ?????????????????????????????????????????????????? | | ?????????????????????????????????????????????????? | | ?????????????????????????????????????????????????# | | ??????????????????????????????????????????????#### | | ???????????????????????????????????????????#### | | ??????????????????????????????????????????## | | ??????????????????????????????????????????# | | ??????????????????????????????????????????# | | ??????????????????????????????????????????# ### | | ?????????????????????????????????????###??# ???? | | ????????????????????????????????????## ?# ???? | | ????????????????????????????????????? ## ##?? | | ???????????????# ????????????????????? #?? | | ????????????????# # ???????????????? ### | | ????????????????# ###??????????????# | | ???????????????## ##???????????????# | | ???????????????# @#####???????????## | | ??????????????# #????????????## | | ??????????? ############### | | ??????????? ###### ## ## | | ????????????????# Y $# ##### ## | | ????????????????# s ?##????########## ##### | | ????????????????#g#?????????????????# #???## | | ??????????????? ??????????????????# #????# | | ?????????????? ????????????????# #???# | | ?????????????Y??????????????????# #???# | | ????????????????????????????????## ### ##???? | | ?????????????????????????????????## ##?# ##????? | | ??????????????????????????????????###???####?????? | | ?????????????????????????????????????????????????? | | ?????????????????????????????????????????????????? | | ?????????????????????????????????????????????????? | | ?????????????????????????????????????????????????? | | ?????????????????????????????????????????????????? | | ?????????????????????????????????????????????????? | | ?????????????????????????????????????????????????? | | ?????????????????????????????????????????????????? | | ?????????????????????????????????????????????????? | | ?????????????????????????????????????????????????? | | ?????????????????????????????????????????????????? | | ?????????????????????????????????????????????????? | +----------------------------------------------------+ Best States ------------- Heat Dissipation 41 Energy Generation 14 Energy Capacity 280 Matter Stores 300 Matter Capacity 300 Sight Range 20 Terrain Scan Range 16 Terrain Scan Density 10 ECM Strength 1 Additional Mass Support 6 Melee Speed Boost 20 Evasion (%) 63 Targeting Accuracy 5 Melee Accuracy 12 Item Schematics ----------------- Cesium-ion Thruster | -8/Materials | Scanalyzed Robot Schematics ------------------ None Fabricated ------------ Nothing Repaired ---------- Aluminum Leg | 56% | -10/Materials Studied --------- Imp. Aluminum Leg | -8/Materials | Hacked Cesium-ion Thruster | -8/Materials | Hacked Alien Tech Used ----------------- None Achievements -------------- DATA ERROR: Steam Global Achievement% For Emergencies Only Heavy Suspicion Item+ Junior Dev Organ Harvest Overwhelming Spot Them First There's More Where That Came From Throw Away The Key Well Done Challenges ------------ None Game ------ Seed DamperHeartJack Manual? 0 Play Time 01:00:25 Cumulative 41.1 hours Start 2026.08.11 @ 16:02:58 End 2026.08.11 @ 17:15:45 Sessions 1 Manual Loads 0 Difficulty Rogue Special Mode None Game No. 61 Rogue 61 Adventurer 0 Explorer 0 Win Type - Total 0 Types 0/0/0/0/0/0/0/0/0/0 Lore% 15 Gallery% 31 Achievement% 19 Wizard Run 0 Options --------- Layout 1 ASCII 0 Keyboard 0 Movement Numpad Keybinds 0 Fullscreen 1 Font 32/SmallcapsGlow Map View 50x35 Zoom Use 0% Tactical HUD 0 Map Filters NONE Filters NONE Steam 1 RUN: 39b45635-64b8-4f16-bbb9-8ff0509a8b89